Cogmind - Beta 17.1 @@@ ROGUE MODE // 2026.09.13 @ 19:21:36 Player: erfael Result: Destroyed by TS-LPJ(R) with Subdweller Machine Gun Performance ------------- Evolutions (0) 0 Regions Visited (3) 600 Robots Destroyed (28) 140 Value Destroyed (787) 787 Prototype IDs (0) 0 Alien Tech Used (0) 0 Bonus (0) 0 TOTAL SCORE: 1527 Bonus ------- None Cogmind --------- Core Integrity 0/250 Matter 171/300 Energy 100/100 System Corruption 0% Temperature Cool (0) Movement Core (350) Ox6 Location -10/Subcaves Parts ------- > --- POWER (1) -------- (None) > --- PROPULSION (2) --- (None) > --- UTILITY (2) ------ Large Storage Unit Targeting Computer > --- WEAPON (2) ------- (None) > --- INVENTORY (15) --- Ion Engine Aluminum Leg Aluminum Leg Aluminum Leg Aluminum Leg Aluminum Leg Large Storage Unit Experimental Sensor Array Improved Terrain Scanner Improved Terrain Scanner Targeting Computer Light Armor Plating Light Armor Plating Light Armor Plating Light Armor Plating Peak State ------------ > --- POWER ------------ Light Nuclear Core > --- PROPULSION ------- Aluminum Leg Aluminum Leg > --- UTILITY ---------- Large Storage Unit Targeting Computer > --- WEAPON ----------- Light Cannon Grenade Launcher > --- INVENTORY -------- Ion Engine Aluminum Leg Aluminum Leg Aluminum Leg Aluminum Leg Large Storage Unit Experimental Sensor Array Improved Terrain Scanner Improved Terrain Scanner Targeting Computer Light Armor Plating Light Armor Plating Light Armor Plating Light Armor Plating [Rating: 11] Favorites ----------- Power Light Ion Engine Engine Light Ion Engine Power Core Light Nuclear Core Propulsion Aluminum Leg Leg Aluminum Leg Utility Large Storage Unit Device Seismic Detector Storage Large Storage Unit Processor Targeting Computer Weapon Medium Laser Energy Gun Medium Laser Ballistic Gun Assault Rifle Ballistic Cannon Light Cannon Launcher Grenade Launcher Build | -11 -10 -10 -10 ------- Run | Yrd Mat Min Sub Slots Evolved . | . . . . Power . | . . . . Propulsion . | . . . . Utility . | . . . . Weapon . | . . . . Parts Attached 22 | 7 9 6 . Power 4 | 1 2 1 . Engine 2 | 1 1 . . Core 2 | . 1 1 . Reactor . | . . . . Propulsion 8 | 2 5 1 . Treads . | . . . . Leg 8 | 2 5 1 . Wheel . | . . . . Hover . | . . . . Flight . | . . . . Utility 4 | 2 1 1 . Device 1 | 1 . . . Storage 2 | 1 1 . . Processor 1 | . . 1 . Hackware . | . . . . Protection . | . . . . Artifact . | . . . . Weapon 6 | 2 1 3 . Energy Gun 3 | 1 1 1 . Energy Cannon . | . . . . Ballistic Gun 1 | 1 . . . Ballistic Cannon 1 | . . 1 . Launcher 1 | . . 1 . Special Weapon . | . . . . Impact Weapon . | . . . . Slashing Weapon . | . . . . Piercing Weapon . | . . . . Special Melee Weapon . | . . . . Unidentified Prototypes . | . . . . Parts Lost 11 | . . 6 5 Power 2 | . . 1 1 Propulsion 3 | . . 1 2 Utility 1 | . . 1 . Weapon 5 | . . 3 2 Highest Loss Streak 4 | . . 4 4 To Critical Strikes 1 | . . . 1 Average Backups 12 | 2 12 14 15 Power 1 | . 1 1 1 Propulsion 3 | . 3 4 5 Utility 5 | . 4 7 9 Weapon 1 | 1 1 1 . Tool/Special . | . . . . Unused Backups 16 | . 1 1 14 Power 1 | . . . 1 Propulsion 4 | . . . 4 Utility 10 | . . 1 9 Weapon 1 | . 1 . . Tool/Special . | . . . . Average Slot Usage (%) 89 | . 99 80 75 Engine 6 | . 6 8 . Core 4 | . 7 . 8 Leg 27 | . 28 27 22 Device 6 | . 14 . . Storage 14 | . 14 14 14 Processor 3 | . . 4 14 Energy Gun 14 | . 14 16 . Ballistic Gun 6 | . 14 . . Ballistic Cannon 3 | . . 5 8 Launcher 1 | . . 1 8 Peak Build Rating 11 | 7 10 11 11 Average Rating 7 | 5 9 7 8 On Entrance 6 | . 7 8 11 Avg Prop Armor Cover (%) . | . . . . Naked Turns . | . . . . Heaviest Build 31 | 12 30 31 31 Greatest Support 20 | 20 20 20 20 Greatest Overweight (x) 6 | . 1 2 6 Average Overweight (x) . | . . 1 1 Largest Inventory Capacity 15 | 8 15 15 15 Average Capacity 13 | 7 14 15 15 Most Carried 15 | 4 15 15 15 Average Carried 12 | 2 12 14 15 Final Capacity 15 | 8 15 15 15 Final Carried 15 | 4 14 15 15 Class Distribution -------------------- 85% | Mutant 14% | Scavenger-Mutant Dominant Class ---------------- Mutant | -10/Materials Mutant | -10/Mines Mutant | -10/Subcaves Resources | -11 -10 -10 -10 ----------- Run | Yrd Mat Min Sub Matter Collected 647 | 378 183 86 . Remotely . | . . . . Salvage Created 957 | 180 531 223 23 Parts 60 | 16 32 12 . Haulers Intercepted . | . . . . Recyclers Shooed . | . . . . Parts Field Recycled . | . . . . Retrieved Matter . | . . . . Parts Self-Destructed 5 | . . . 5 Prevented . | . . . . Parts Restored . | . . . . Kills | -11 -10 -10 -10 ------- Run | Yrd Mat Min Sub Combat Hostiles Destroyed 19 | . 11 6 2 Guns 14 | . 11 3 . Cannons 2 | . . 2 . AOE 3 | . . 1 2 Classes Destroyed 8 | 2 4 1 1 Worker 2 | 2 . . . Tunneler 5 | 5 . . . Recycler 1 | . 1 . . Watcher 1 | . 1 . . Swarmer 1 | . 1 . . Grunt 14 | . 10 4 . Sentry 2 | . . 2 . Subdweller 2 | . . . 2 Best Kill Streak 3 | 3 3 2 2 Combat Bots Only 3 | . 3 2 2 Max Kills in Single Turn 1 | 1 1 1 1 Gunslinging . | . . . . Exploded 1 | . . 1 1 Melee . | . . . . Uniques/NPCs Destroyed . | . . . . Combat | -11 -10 -10 -10 -------- Run | Yrd Mat Min Sub Hostile Shots Fired 112 | . 40 43 29 Missed 25 | . 9 7 9 Hits 87 | . 31 36 20 Projectile 87 | . 31 36 20 Critical Strikes 6 | . 1 4 1 Damage Taken 1340 | . 380 516 444 Core 251 | . 37 114 100 Absorbed by Shields . | . . . . Core Remaining (%) 100 | 100 . . . Volleys Fired 99 | 36 31 24 8 Largest 2 | 2 2 2 2 Hottest 90 | 60 70 90 60 Shots Fired 171 | 56 62 39 14 Gun 141 | 56 62 23 . Cannon 21 | . . 13 8 Launcher 9 | . . 3 6 Special . | . . . . Kinetic 90 | 36 31 15 8 Thermal 61 | 20 31 10 . Explosive 9 | . . 3 6 Electromagnetic 11 | . . 11 . Robot Hit Streak 9 | 6 8 6 9 Robot Miss Streak 4 | 4 3 2 1 Penetration Max . | . . . . Secondary Targets . | . . . . Shots Hit Robots 112 | 31 43 26 12 Core Hits 49 | 7 25 12 5 Critical Kills . | . . . . Critical Parts Destroyed . | . . . . Critical Strikes 4 | . 2 2 . Burn 3 | . 2 1 . Blast 1 | . . 1 . Melee Attacks . | . . . . Impact . | . . . . Slashing . | . . . . Piercing . | . . . . Sneak Attacks . | . . . . Combat Hostiles . | . . . . Follow-up Attacks . | . . . . Damage Inflicted 1818 | 376 560 466 416 Guns 1151 | 376 560 215 . Cannons 275 | . . 167 108 Explosions 392 | . . 84 308 Melee . | . . . . Ramming . | . . . . Kinetic 857 | 257 305 187 108 Thermal 487 | 119 255 113 . Explosive 392 | . . 84 308 Electromagnetic 82 | . . 82 . Impact . | . . . . Slashing . | . . . . Piercing . | . . . . Highest Corruption . | . . . . Average Corruption . | . . . . Corruption Purged . | . . . . Corruption Blocked . | . . . . Overload Shots . | . . . . Overflow Damage . | . . . . Projectiles . | . . . . Explosions . | . . . . Melee . | . . . . Knockbacks 3 | . . . 3 Impact . | . . . . Kinetic 3 | . . . 3 Secondary . | . . . . Self-Inflicted Damage 28 | . . . 28 Shots 2 | . . . 2 Rammed . | . . . . Targets Rammed . | . . . . Kicked . | . . . . Crushed . | . . . . Highest Temperature 236 | . 144 236 . Average Temperature 60 | . 39 96 . Received Heat Transfer 582 | . 222 288 72 Siege Activations . | . . . . Martial Activations . | . . . . Shielding Activations . | . . . . Robots Disrupted . | . . . . Combat Hostiles . | . . . . Robots Corrupted . | . . . . Combat Hostiles . | . . . . Parts Fried . | . . . . Impact Corruptions . | . . . . Robots Melted . | . . . . Combat Hostiles . | . . . . Parts Melted 1 | . 1 . . Heat Transferred 1535 | 275 853 407 . Parts Sabotaged . | . . . . Parts Stolen . | . . . . Parts Stripped . | . . . . Power Chain Reactions . | . . . . Alert | -11 -10 -10 -10 ------- Run | Yrd Mat Min Sub Maximum Alert Level . | . . . . Low Security (%) 100 | 100 100 100 . Level 1 . | . . . . Level 2 . | . . . . Level 3 . | . . . . Level 4 . | . . . . Level 5 . | . . . . High Security . | . . . . Max Security . | . . . . Peak Influence 95 | 15 95 80 . Initial 9 | . . 9 . Average 24 | 1 46 11 . Influence Increases 545 | 35 332 178 . Destroy 0b10 Robot/C 340 | . 220 120 . Destroy 0b10 Robot/NC 45 | 35 10 . . Destroy Leader 92 | . 72 20 . Disable Machine 30 | . . 30 . Destroy Structure 8 | . . 8 . Partial Spotted 15 | . 15 . . Lose Combat Pursuer 15 | . 15 . . Influence Decreases 545 | 35 308 162 40 Entered New Map 36 | . . 15 21 Time Decay 480 | 35 308 118 19 Lost Part 29 | . . 29 . Squads Dispatched 6 | . 6 . . Investigation 4 | . 4 . . Extermination . | . . . . Reinforcement 2 | . 2 . . Assault . | . . . . Garrison . | . . . . Intercept . | . . . . Searches Triggered . | . . . . Construction Impeded . | . . . . Haulers Reinforced . | . . . . Active Scanning Responses . | . . . . Cargo Convoy Interrupts . | . . . . Stealth | -11 -10 -10 -10 --------- Run | Yrd Mat Min Sub Distress Signals 2 | . 2 . . Communications Jammed . | . . . . Distress Signals . | . . . . Times Spotted 28 | . 19 5 4 Peak Tracking Total 3 | . 3 2 2 Tactical Retreats 1 | . 1 . . Traps | -11 -10 -10 -10 ------- Run | Yrd Mat Min Sub Traps Triggered 4 | . 4 . . Indirectly . | . . . . Trap Hack Attempts . | . . . . Triggered . | . . . . Disarmed . | . . . . Reprogrammed . | . . . . Reused . | . . . . Traps Extracted . | . . . . Installed . | . . . . Triggered . | . . . . Machines | -11 -10 -10 -10 ---------- Run | Yrd Mat Min Sub Machines Disabled 3 | . . 3 . Max in Single Turn 1 | . . 1 . Machines Repaired . | . . . . Machines Dismantled . | . . . . Machines Sabotaged . | . . . . Overloaded Fab Kills . | . . . . Hacking | -11 -10 -10 -10 --------- Run | Yrd Mat Min Sub Machines Accessed 2 | . 2 . . Terminals 2 | . 2 . . Fabricators . | . . . . Repair Stations . | . . . . Recycling Units . | . . . . Scanalyzers . | . . . . Garrison Access . | . . . . Total Hacks 4 | . 4 . . Successful 2 | . 2 . . Failed 2 | . 2 . . Catastrophic 1 | . 1 . . Database Lockouts . | . . . . Manual 4 | . 4 . . Terminals 4 | . 4 . . Fabricators . | . . . . Repair Stations . | . . . . Recycling Units . | . . . . Scanalyzers . | . . . . Garrison Access . | . . . . Terminal Hacks . | . . . . Fabricator Hacks . | . . . . Repair Station Hacks . | . . . . Recycling Unit Hacks . | . . . . Scanalyzer . | . . . . Garrison Access Hacks . | . . . . Unauthorized Hacks 2 | . 2 . . Terminals 2 | . 2 . . Botnet 2 | . 2 . . Fabricators . | . . . . Repair Stations . | . . . . Recycling Units . | . . . . Scanalyzers . | . . . . Garrison Access . | . . . . Data Cores Recovered . | . . . . Used . | . . . . Hacking Detections 2 | . 2 . . Full Trace Events . | . . . . Feedback Events . | . . . . Feedback Blocked . | . . . . Robot Schematics Acquired . | . . . . Robots Built . | . . . . Authchips . | . . . . Time . | . . . . Total Robot Build Rating . | . . . . Part Schematics Acquired . | . . . . Parts Built . | . . . . Authchips . | . . . . Time . | . . . . Total Part Build Rating . | . . . . Part Studies Acquired . | . . . . Parts Repaired . | . . . . Time . | . . . . Parts Recycled . | . . . . Recycled Matter . | . . . . Retrieved Matter . | . . . . Retrieved Components . | . . . . Parts Scanalyzed . | . . . . Part Schematics Acquired . | . . . . Parts Damaged . | . . . . Bothacking | -11 -10 -10 -10 ------------ Run | Yrd Mat Min Sub Used RIF Installer . | . . . . Robots Hacked . | . . . . Non-combat . | . . . . Combat . | . . . . Robot Hacks Applied . | . . . . Relay Couplers Released . | . . . . Fabnet Peak Effective % . | . . . . Robots Rewired . | . . . . Allies Hacked . | . . . . Hacks Repelled . | . . . . Allies | -11 -10 -10 -10 -------- Run | Yrd Mat Min Sub Total Allies . | . . . . Largest Group . | . . . . Highest-Rated Group . | . . . . Highest-Rated Ally . | . . . . Total Orders . | . . . . Ally Attacks . | . . . . Total Damage . | . . . . Kills . | . . . . Allies Corrupted . | . . . . Allies Melted . | . . . . Intel | -11 -10 -10 -10 ------- Run | Yrd Mat Min Sub Active Infowar (turns) 928 | 77 844 7 . Seismic 928 | 77 844 7 . Robot Analysis Total . | . . . . Derelict Logs Recovered 2 | . . 2 . Drone Launches . | . . . . Drone Recoveries . | . . . . Exploration | -11 -10 -10 -10 ------------- Run | Yrd Mat Min Sub Turns Passed 2075 | 269 844 850 112 Spaces Moved 952 | 141 368 396 47 Core 10 | 9 . . 1 Treads . | . . . . Legs 942 | 132 368 396 46 Wheels . | . . . . Hover . | . . . . Flight . | . . . . Fastest Speed 50 | 50 120 190 190 Average Speed 177 | 115 185 190 194 Slowest Speed 350 | 120 190 260 350 Overloaded Moves . | . . . . Propulsion Burnouts . | . . . . Robots Hopped . | . . . . Potential Cave-ins . | . . . . Cave-ins Triggered . | . . . . Exploration Rate (%) 35 | 7 60 69 6 Regions Visited 3 Branch Regions 2 Pre-discovered Areas 2 | . . 2 . Known Exits Taken . | . . . . Unknown Exits Taken 3 | 1 1 1 . Scrap Searched 2 | . . 2 . Spaces Dug . | . . . . Terrain Destroyed 38 | . . 8 30 Melee . | . . . . Projectile . | . . . . AOE 38 | . . 8 30 Terrain Rammed . | . . . . Walls Destroyed . | . . . . Machines Disabled . | . . . . Actions | -11 -10 -10 -10 --------- Run | Yrd Mat Min Sub Total 1174 | 188 479 452 55 Wait 57 | . 39 18 . Move 949 | 140 367 395 47 Hop . | . . . . Pick Up 27 | 5 16 6 . Fast Attach 8 | 6 . 2 . Attach 6 | 1 1 4 . Detach 1 | . 1 . . Swap 10 | . 9 1 . Drop 17 | . 15 2 . Fire 99 | 36 31 24 8 Melee . | . . . . Ram . | . . . . Kick . | . . . . Crush . | . . . . Escape Stasis . | . . . . Rewire . | . . . . Trap . | . . . . Miscellaneous . | . . . . Route ------- -11/Scrapyard -10/Materials (discovered 3 exits: [*Mat x2] / [*Min]) -10/Mines (discovered 2 exits: [*Mat] / [*Sub]) -10/Subcaves History --------- Turn | Location | Event 5 | -11/Scrapyard | Discovered new exit (range 15) 270 | -11/Scrapyard | Entered Materials 327 | -10/Materials | Build established: Mutant 413 | -10/Materials | Discovered new exit (range 14) 736 | -10/Materials | Discovered new exit (range 10) 802 | -10/Materials | Discovered new exit (range 15) 870 | -10/Materials | Derelicts attacked the area 1114 | -10/Materials | Entered Mines 1381 | -10/Mines | Found a damaged Exp. Sensor Array with a note attached 1385 | -10/Mines | Found Prototype Device 1466 | -10/Mines | Discovered new exit (range 14) 1525 | -10/Mines | Found a hidden stash of uninstalled traps 1646 | -10/Mines | Core integrity fell below 50% 1676 | -10/Mines | Lost 4 parts (1p1n2w) 1954 | -10/Mines | Discovered new exit (range 6) 1964 | -10/Mines | Entered Subcaves 1965 | -10/Subcaves | Approached by a straggling Scientist 2010 | -10/Subcaves | Ambushed by Subdweller buried in earth 2016 | -10/Subcaves | Ambushed by Subdweller buried in earth 2028 | -10/Subcaves | Core integrity fell below 20% 2058 | -10/Subcaves | Lost 4 parts (1p1n2w) 2076 | -10/Subcaves | Destroyed by TS-LPJ(R) with Subdweller Machine Gun Last Messages --------------- 01968_ R9-XGZ(c): "Hey, let me tag along and I can get us both out of this nasty situation. At least I think I can... The group I got separated from was talking about a shortcut back to the UFD." 02001_ 6Z-B2W(R) knocked back. 02001_ 6Z-B2W(R) destroyed. 02003_ LG-ZDF(R) affixes Scrap Shield Fragment to Scrap Shield. [Achievement: Do Not Disturb] 02011_ TS-LPJ(R): "THANKSYOU!" 02013_ LG-ZDF(R) knocked back. 02013_ LG-ZDF(R) destroyed. R9-XGZ(c): "I think it's somewhere northeast of here" 02016_ TS-LPJ(R) knocked back. 02017_ QR-D3N(R): "ARGHSUB!" 02020_ Grenade Launcher destroyed. 02021_ Critical hit (Destroy). 02021_ Aluminum Leg destroyed. 02025_ Lgt. Cannon destroyed. 02027_ Lgt. Nuclear Core destroyed. 02074_ Aluminum Leg destroyed. 02075_ TS-LPJ(R) affixes Scrap Shield Fragment to Scrap Shield. Map ----- +----------------------------------------------------+ | ????????????????????????????????????????????? | | ????????????????????????????????????????????? | | ????????????????????????????????????????????? | | ????????????????????????????????????????????? | | ????????????????????????????????????????????? | | ????????????????????????????????????????????? | | ????????????????????????????????????????????? | | ????????????????????????????????????????????? | | ????????????????????????????????????????????? | | ????????????????????????????????????????????? | | ???????????????????????? ??????????????????? | | ???????????????????????? #?????????????????? | | ??????????????????????## ##???????????????? | | ??????????????????????# #???????????????? | | ?????????????????????? ##??????????????? | | ??????????????????????? ??????????????? | | ??????????????????????? #??????????????? | | ??????????????????????? ???????????????? | | ??????????????????????? #???????????????? | | ???????????????????????# #???????????????? | | ?????????????????#####?# #???????????????? | | ?????????????????# ### #????????????????? | | ?????????????????# #????????????????? | | ????????????????## #????????????????? | | ????????????????# R #????????????????? | | ????????????????# < << @#?????????????????? | | ????????????????# R< #?????????????????? | | ???????????????## & R #?????????????????? | | ???????????????# R R #?????????????????? | | ???????????????# < # #?????????????????? | | ????????###????## ### #???????????????? | | ???#????#" ?????## ### #?????????????? | | ???? ??## "??????## #### #?????????????? | | ????# ?# #???????# #?? #?????????????? | | ???## ### ######### ### ##?????????????? | | ???# # # # ##??????????????? | | ???# #???????????????? | | ???## #??????????????? | | ????# # # # ## ## #??????????????? | | ????#?#### ######## ##? #??????????????? | | ????????## ##????####??? #??????????????? | | ????????# ###?????????? #??????????????? | | ????????## #??????????? #??????????????? | | ???????? #??????????#??????????????? | | ???????## #?????????????????????????? | | ????????# #?????????????????????????? | | ????????## #?????????????????????????? | | ????????? & ####?????????????????????????? | | ???????? #???????????????????????????? | | ????? #??????????????????????????? | +----------------------------------------------------+ Best States ------------- Heat Dissipation 25 Energy Generation 14 Energy Capacity 160 Matter Stores 300 Matter Capacity 300 Sight Range 16 Terrain Scan Density 10 Evasion (%) 55 Targeting Accuracy 5 Item Schematics ----------------- None Robot Schematics ------------------ None Fabricated ------------ Nothing Repaired ---------- Nothing Studied --------- None Alien Tech Used ----------------- None Achievements -------------- Do Not Disturb Challenges ------------ None Game ------ Seed CloakingSupersonicCompactor Manual? 0 Play Time 00:15:18 Cumulative 66.3 hours Start 2026.09.13 @ 19:07:08 End 2026.09.13 @ 19:21:36 Sessions 1 Manual Loads 0 Difficulty Rogue Special Mode None Game No. 67 Rogue 67 Adventurer 0 Explorer 0 Win Type - Total 0 Types 0/0/0/0/0/0/0/0/0/0 Lore% 31 Gallery% 27 Achievement% 18 Wizard Run 0 Options --------- Layout 0 ASCII 0 Keyboard 1 Movement Numpad Keybinds 0 Fullscreen 2 Font 20/Terminus Map View 97x62 Zoom Use 0% Tactical HUD 1 Map Filters NONE Filters NONE Steam 1 RUN: c78115cf-b6fb-4a3f-b97f-8bec8d1dcc69